bitfinex/quotes_SOLUSD_20260220
["timestamp","ask_amount","ask_price","bid_price","bid_amount"]
[1771628472470,1.0739741,84.675,84.633,1.1837095]
[1771628473484,1.0739741,84.675,84.635,1.1837095]
[1771628474480,11.8100007,84.674,84.635,1.1837095]
[1771628474688,1.07391343,84.673,84.635,1.1837095]
[1771628475894,1.07391343,84.673,84.637,1.1837095]
[1771628476069,104.4,84.677,84.651,1.1837095]
[1771628476582,1.07388361,84.687,84.651,1.1837095]
[1771628476783,11.80800206,84.689,84.651,1.1837095]
[1771628477186,12.8818562,84.689,84.651,1.1837095]
[1771628478375,12.8818562,84.689,84.653,1.1837095]
[1771628478879,1.0737962,84.688,84.653,1.1837095]
[1771628480188,1.0737962,84.688,84.638,0.28432314]
[1771628480189,1.07373959,84.697,84.661,1.1837095]
[1771628482679,1.07368427,84.695,84.663,1.1837095]
[1771628483778,1.07365709,84.715,84.671,1.1837095]
[1771628483978,1.07365709,84.714,84.671,1.1837095]
[1771628484781,1.07365709,84.714,84.673,1.1837095]
[1771628485497,1.07360366,84.719,84.681,1.1837095]
[1771628486796,1.07360366,84.719,84.683,1.1837095]
[1771628486994,1.0735774,84.725,84.683,1.1837095]
[1771628487191,1.0735774,84.725,84.691,1.1837095]
[1771628487900,0.1,84.73,84.691,1.1837095]
[1771628488095,0.1,84.73,84.701,1.1837095]
[1771628488899,0.1,84.73,84.711,1.1837095]
[1771628490582,1.07352578,84.746,84.71,4.2932345]
[1771628490583,1.07352578,84.746,84.719,1.1837095]
[1771628490778,1.07352578,84.746,84.721,1.1837095]
[1771628493496,0.1,84.75,84.723,1.1837095]
[1771628495088,1.17337791,84.75,84.723,1.1837095]
[1771628496209,1.17337791,84.75,84.725,1.1837095]
[1771628496617,0.1,84.75,84.725,1.1837095]
[1771628498309,0.1,84.75,84.727,1.29230574]
[1771628500093,0.1,84.75,84.729,1.29230574]
[1771628503395,0.1,84.75,84.731,1.29230574]
[1771628505215,0.1,84.75,84.733,1.29230574]
[1771628510727,0.1,84.75,84.719,1.29230574]
[1771628510728,1.07301053,84.749,84.719,1.29230574]
[1771628510933,1.07301053,84.749,84.713,11.8044331]
[1771628511233,1.07299109,84.739,84.703,1.29230574]
[1771628513719,4.28513193,84.74,84.698,1.29230574]
[1771628513720,1.07295287,84.737,84.698,1.29230574]
[1771628515115,1.07295287,84.737,84.692,1.29230574]
[1771628515320,1.07295287,84.737,84.621,11.83]
[1771628515321,4.28513193,84.7,84.619,47.27038933]
[1771628515518,1.20596856,84.699,84.65,4.28513193]
[1771628515719,1.20596856,84.699,84.64,4.28513193]
[1771628516316,1.20596856,84.699,84.634,3.69383402]
[1771628516317,1.20596856,84.699,84.65,4.28513193]
[1771628516714,1.20596856,84.699,84.66,4.28513193]
[1771628517322,1.20596856,84.697,84.663,1.29230574]
[1771628521717,1.20596856,84.697,84.665,1.29230574]
[1771628523628,1.20596856,84.693,84.66,11.81195369]
[1771628524124,1.20596856,84.693,84.66,13.10425943]
[1771628524725,1.20596856,84.693,84.655,11.81256829]
[1771628525215,1.20596856,84.693,84.655,13.10487403]
[1771628525622,1.20596856,84.693,84.655,11.81256829]
[1771628526120,1.20596856,84.691,84.651,11.81320953]
[1771628526324,1.20596856,84.689,84.648,1.29230574]
[1771628526542,1.20596856,84.689,84.65,1.29230574]
[1771628528236,1.2489226,84.687,84.652,1.25203699]
[1771628532038,1.2489226,84.685,84.654,1.25203699]
[1771628534445,1.2489226,84.683,84.656,1.25203699]
[1771628536730,1.2489226,84.683,84.658,1.25203699]
[1771628538543,1.2489226,84.683,84.66,1.25203699]
[1771628539144,1.2489226,84.688,84.66,1.25203699]
[1771628539530,1.2489226,84.688,84.661,1.25203699]
[1771628540047,105.6489226,84.711,84.671,1.25203699]
[1771628540241,1.2489226,84.71,84.671,1.25203699]
[1771628540632,1.2489226,84.71,84.673,1.25203699]
[1771628541034,1.2489226,84.708,84.673,1.25203699]
[1771628543851,1.2489226,84.706,84.675,1.25203699]
[1771628545759,1.2489226,84.706,84.676,11.80972176]
[1771628545958,1.2489226,84.706,84.677,1.25203699]
[1771628548546,1.2489226,84.706,84.674,29.52500177]
[1771628548547,1.2489226,84.706,84.679,1.25203699]
[1771628550357,1.2489226,84.704,84.681,1.25203699]
[1771628552964,1.2489226,84.702,84.677,1.25203699]
[1771628553165,1.2489226,84.702,84.678,1.25203699]
[1771628553667,1.2489226,84.702,84.677,11.80946598]
[1771628557447,1.2489226,84.702,84.676,1.25563914]
[1771628560961,104.4,84.711,84.651,13.06884867]
[1771628560962,1.25884934,84.689,84.651,13.06884867]
[1771628562470,41.32816927,84.688,84.651,13.06884867]
[1771628562663,1.25884934,84.687,84.651,13.06884867]
[1771628563064,1.25884934,84.687,84.652,1.25563914]
[1771628565268,1.25884934,84.685,84.652,1.25563914]
[1771628567499,4.28513193,84.68,84.633,1.25563914]
[1771628567692,1.25884934,84.669,84.633,1.25563914]
[1771628568077,1.25884934,84.675,84.633,1.25563914]
[1771628568276,1.25884934,84.675,84.641,1.25563914]
[1771628569581,1.25884934,84.677,84.643,1.25563914]
[1771628570083,1.25884934,84.677,84.635,1.25563914]
[1771628571901,1.25884934,84.675,84.637,1.25563914]
[1771628572087,1.25884934,84.675,84.641,1.25563914]
[1771628572396,1.25884934,84.682,84.641,1.25563914]
[1771628574101,1.25884934,84.68,84.643,1.25563914]
[1771628577790,1.25884934,84.68,84.645,1.25563914]
[1771628577995,1.25884934,84.678,84.645,1.25563914]
[1771628579292,11.80958229,84.677,84.646,11.81390733]
[1771628579493,1.25884934,84.676,84.647,1.25563914]
[1771628583297,1.25884934,84.676,84.649,1.25563914]
[1771628583617,1.25884934,84.694,84.651,1.25563914]
[1771628591009,1.18561104,84.692,84.653,1.22718396]
[1771628592211,1.18561104,84.692,84.655,1.22718396]
[1771628592609,11.80763009,84.691,84.655,1.22718396]
[1771628592816,1.18561104,84.69,84.655,1.22718396]
[1771628594317,1.18561104,84.69,84.657,1.22718396]
[1771628595104,1.18561104,84.69,84.656,41.34379134]
[1771628595105,1.18561104,84.697,84.661,1.22718396]
[1771628597221,1.18561104,84.697,84.663,1.22718396]
[1771628597918,108.69120359,84.71,84.663,1.22718396]
[1771628598118,4.29120359,84.74,84.691,1.22718396]
[1771628598304,1.18561104,84.747,84.701,1.22718396]
[1771628598499,1.18561104,84.747,84.702,0.28432314]
[1771628598726,0.1,84.75,84.721,1.22718396]
[1771628598915,1.18561104,84.739,84.681,1.22718396]
[1771628599111,11.79954925,84.749,84.675,11.80986123]
[1771628599112,1.18561104,84.707,84.675,11.80986123]
[1771628599318,1.18561104,84.707,84.676,1.22718396]
[1771628601237,1.18561104,84.735,84.681,1.22718396]
[1771628601421,11.79954925,84.749,84.721,1.22718396]
[1771628601722,1.18561104,84.739,84.69,4.29120359]
[1771628602106,1.18561104,84.729,84.69,4.29120359]
[1771628602607,1.18561104,84.729,84.681,5.64518502]
[1771628603421,1.18561104,84.729,84.683,5.64518502]
[1771628603619,1.18561104,84.729,84.688,1.22718396]
[1771628603804,1.18561104,84.729,84.691,1.22718396]
[1771628604820,1.18561104,84.729,84.693,1.22718396]
[1771628605017,12.9856149,84.746,84.711,1.22718396]
[1771628605218,12.9856149,84.746,84.692,41.32621735]
[1771628605219,0.1,84.76,84.731,1.22718396]
[1771628606717,0.1,84.76,84.732,11.80191663]
[1771628606911,0.1,84.76,84.733,1.22718396]
[1771628608117,0.1,84.76,84.734,11.80163806]
[1771628608318,0.1,84.76,84.735,1.22718396]
[1771628608524,1.28561104,84.75,84.734,11.80163806]
[1771628609121,1.18561104,84.749,84.702,1.22718396]
[1771628609320,1.18561104,84.729,84.693,1.22718396]
[1771628609635,1.18561104,84.719,84.686,1.22718396]
[1771628610322,1.18561104,84.719,84.687,11.80818779]
[1771628613900,1.18561104,84.719,84.683,29.52178863]
[1771628613901,4.29120359,84.73,84.691,1.22718396]
[1771628614107,1.18561104,84.746,84.711,1.22718396]
[1771628614311,0.1,84.75,84.691,0.28432314]
[1771628614312,0.1,84.75,84.73,4.29120359]
[1771628615821,0.1,84.75,84.729,1.22718396]
[1771628616020,1.18561104,84.749,84.721,11.80344896]
[1771628616526,1.18561104,84.749,84.717,11.80400178]
[1771628617329,1.18561104,84.749,84.712,11.80462133]
[1771628617722,1.29633239,84.739,84.703,11.80582535]
[1771628617917,1.29633239,84.729,84.703,11.80582535]
[1771628618116,1.29633239,84.729,84.693,11.80735125]
[1771628618427,1.29633239,84.719,84.68,4.29120359]
[1771628618631,1.29633239,84.719,84.681,1.26605915]
[1771628619831,1.29633239,84.717,84.683,1.26605915]
[1771628623435,1.29633239,84.715,84.671,1.26605915]
[1771628623756,1.29633239,84.715,84.68,4.29120359]
[1771628624124,1.29633239,84.715,84.68,5.55726274]
[1771628624327,1.29633239,84.715,84.681,1.26605915]
[1771628624631,3.69383402,84.741,84.68,4.29120359]
[1771628624632,1.29633239,84.739,84.71,4.29120359]
[1771628625520,1.29633239,84.739,84.71,16.09613514]
[1771628625721,1.29633239,84.739,84.71,17.36219429]
[1771628626027,1.29633239,84.739,84.711,1.26605915]
[1771628626228,13.09741336,84.738,84.711,1.26605915]
[1771628626820,11.80108097,84.738,84.711,1.26605915]
[1771628627026,1.29633239,84.737,84.711,1.26605915]
[1771628628343,1.29633239,84.735,84.711,1.26605915]
[1771628629026,1.29633239,84.735,84.712,11.80470299]
[1771628629341,1.29633239,84.735,84.71,4.29120359]
[1771628629538,1.29633239,84.735,84.707,11.80531161]
[1771628631035,11.80163806,84.734,84.707,11.80531161]
[1771628631260,1.29633239,84.733,84.707,11.80531161]
[1771628631444,1.29633239,84.733,84.703,11.80583841]
[1771628633645,4.29120359,84.74,84.699,11.80651483]
[1771628633646,1.29633239,84.731,84.699,11.80651483]
[1771628634361,1.29633239,84.731,84.701,1.26605915]
[1771628636643,1.29633239,84.731,84.711,1.26605915]
[1771628637552,4.3855001,84.75,84.711,1.26605915]
[1771628637553,1.29633239,84.746,84.711,1.26605915]
[1771628638556,1.29633239,84.739,84.702,11.80609666]
[1771628640650,1.29633239,84.729,84.691,11.80763009]
[1771628641138,1.29633239,84.729,84.691,13.07368924]
[1771628641740,1.29633239,84.727,84.692,1.26605915]
[1771628644157,1.29633239,84.725,84.693,11.80735125]
[1771628644358,1.29633239,84.725,84.692,1.26605915]
[1771628645740,11.80303101,84.724,84.692,1.26605915]
[1771628645962,1.29633239,84.723,84.692,1.26605915]
[1771628648365,1.27566221,84.721,84.692,1.26605915]
[1771628650366,1.27566221,84.719,84.692,1.26605915]
[1771628651283,1.27566221,84.719,84.675,1.28997887]
[1771628651572,1.27566221,84.719,84.62,47.26963607]
[1771628651573,1.27566221,84.699,84.659,1.28997887]
[1771628652563,1.27566221,84.699,84.657,11.81237227]
[1771628652564,1.27566221,84.697,84.661,1.28997887]
[1771628654153,1.27566221,84.689,84.656,11.8124003]
[1771628654353,4.2855001,84.68,84.647,11.8136501]
[1771628654561,1.27566221,84.679,84.647,11.8136501]
[1771628655472,11.80944283,84.678,84.643,11.81432605]
[1771628655774,1.27566221,84.677,84.643,11.81432605]
[1771628656674,11.80944283,84.678,84.636,1.28997887]
[1771628656675,4.2855001,84.67,84.636,1.28997887]
[1771628656862,1.27566221,84.669,84.641,1.28997887]
[1771628657067,1.27566221,84.669,84.64,4.2855001]
[1771628657265,1.27566221,84.669,84.6,4.2855001]
[1771628657266,1.27566221,84.669,84.63,4.4855001]
[1771628657663,1.27566221,84.667,84.63,4.4855001]
[1771628658565,1.27566221,84.667,84.63,5.77547897]
[1771628658768,1.27566221,84.667,84.63,1.48997887]
[1771628659481,1.27566221,84.667,84.631,1.28997887]
[1771628662071,11.81111662,84.666,84.631,1.28997887]
[1771628662481,1.27566221,84.668,84.641,1.28997887]
[1771628663167,1.27566221,84.668,84.632,11.81586161]
[1771628663370,1.27566221,84.668,84.633,1.28997887]
[1771628664686,1.27566221,84.666,84.641,1.28997887]
[1771628667683,1.27566221,84.666,84.642,11.81446563]
[1771628667876,1.27566221,84.666,84.643,1.28997887]
[1771628668889,11.81125612,84.665,84.643,1.28997887]
[1771628670279,1.27566221,84.664,84.638,11.81495813]
[1771628670486,1.27566221,84.664,84.63,1.48997887]
[1771628670779,1.27566221,84.664,84.63,13.30602095]
[1771628673297,1.27566221,84.662,84.631,1.28997887]
[1771628674277,1.27566221,84.667,84.641,1.28997887]
[1771628675201,11.81094207,84.668,84.643,1.28997887]
[1771628676195,11.81094207,84.668,84.643,1.18997887]
[1771628676704,13.08660428,84.668,84.643,1.18997887]
[1771628677397,11.80988622,84.675,84.644,11.81418647]
[1771628677597,1.2442713,84.674,84.644,11.81418647]
[1771628677805,1.2442713,84.659,84.63,0.2]
[1771628680101,41.34281461,84.658,84.63,0.2]
[1771628680294,1.2442713,84.657,84.63,0.2]
[1771628683208,1.2442713,84.655,84.63,0.2]
[1771628683394,11.81251181,84.656,84.631,1.29655313]
[1771628683920,11.81251181,84.656,84.632,1.29655313]
[1771628685507,11.81251181,84.656,84.634,1.29655313]
[1771628686510,1.2442713,84.655,84.634,1.29655313]
[1771628687011,1.2442713,84.655,84.63,0.2]
[1771628688418,1.2442713,84.653,84.63,1.49655313]
[1771628690024,1.2442713,84.651,84.63,1.49655313]
[1771628690325,1.2442713,84.651,84.63,0.2]
[1771628692242,4.2855001,84.66,84.63,0.2]
[1771628692243,1.2442713,84.649,84.63,0.2]
[1771628694329,1.2442713,84.647,84.63,0.2]
[1771628699233,1.2442713,84.645,84.63,0.2]
[1771628702531,1.2442713,84.643,84.63,0.2]
[1771628706240,11.81418647,84.644,84.63,0.2]
[1771628707541,1.3509052,84.644,84.63,0.2]
[1771628707747,29.53309186,84.651,84.612,1.3253012]
[1771628707748,1.3509052,84.639,84.612,1.3253012]
[1771628709040,1.3509052,84.649,84.612,1.3253012]
[1771628709622,104.4,84.693,84.61,16.3122385]
[1771628709623,11.81139563,84.664,84.621,1.3253012]
[1771628709822,104.4,84.693,84.613,41.36480209]
[1771628709823,13.16174094,84.669,84.631,1.3253012]
[1771628710843,1.3509052,84.668,84.631,1.3253012]
[1771628712852,1.3509052,84.666,84.633,1.3253012]
[1771628716352,1.3509052,84.664,84.635,1.3253012]
[1771628718742,1.3509052,84.664,84.637,1.3253012]
[1771628723459,1.3509052,84.664,84.639,1.3253012]
[1771628726643,1.3509052,84.662,84.641,1.3253012]
[1771628731051,1.3509052,84.662,84.643,1.3253012]
[1771628733161,1.3509052,84.674,84.645,1.3253012]
[1771628735272,1.3509052,84.672,84.647,1.3253012]
[1771628736752,1.3509052,84.672,84.649,1.3253012]
[1771628739472,1.20292666,84.669,84.636,1.24005211]
[1771628739665,1.20292666,84.669,84.632,1.24005211]
[1771628744186,104.4,84.679,84.61,0.2]
[1771628744187,1.20292666,84.649,84.61,0.2]
[1771628744362,1.20292666,84.639,84.61,0.2]
[1771628745673,1.20292666,84.639,84.612,1.24005211]
[1771628745889,1.20292666,84.649,84.612,1.24005211]
[1771628746180,1.20292666,84.653,84.614,1.24005211]
[1771628746562,1.20292666,84.667,84.621,1.24005211]
[1771628747593,1.20292666,84.666,84.623,1.24005211]
[1771628749381,11.81125612,84.665,84.624,41.35942521]
[1771628749582,1.20292666,84.664,84.625,1.24005211]
[1771628751379,1.20292666,84.664,84.631,1.24005211]
[1771628751586,1.20292666,84.664,84.632,11.81586161]
[1771628751778,1.20292666,84.664,84.633,1.24005211]
[1771628753689,1.20292666,84.664,84.635,1.24005211]
[1771628754894,1.20292666,84.664,84.637,1.24005211]
[1771628755112,1.20292666,84.662,84.637,1.24005211]
[1771628757183,1.20292666,84.662,84.639,1.24005211]
[1771628758789,11.81181417,84.661,84.639,1.24005211]
[1771628758989,1.20292666,84.66,84.639,1.24005211]
[1771628762388,1.20292666,84.658,84.639,1.24005211]
[1771628762580,1.20292666,84.658,84.639,13.05491355]
[1771628762780,1.20292666,84.658,84.628,1.24005211]
[1771628765693,1.20292666,84.656,84.63,1.24005211]
[1771628767302,1.20292666,84.656,84.629,11.81628047]
[1771628767999,1.18677623,84.654,84.628,1.23255953]
[1771628768194,1.18677623,84.654,84.616,1.23255953]
[1771628768781,1.18677623,84.654,84.621,1.23255953]
[1771628769176,32.50209594,84.711,84.622,0.28432314]
[1771628769507,11.80512106,84.709,84.661,1.23255953]
[1771628770082,4.29158742,84.73,84.681,1.23255953]
[1771628770297,47.18251985,84.778,84.691,1.23255953]
[1771628770298,41.30329599,84.739,84.691,1.23255953]
[1771628770603,0.28432314,84.735,84.691,1.23255953]
[1771628770794,3.69383402,84.736,84.691,1.23255953]
[1771628770994,4.29158742,84.73,84.691,1.23255953]
[1771628771401,1.18677623,84.709,84.673,1.23255953]
[1771628772405,1.18677623,84.707,84.674,1.23255953]
[1771628775505,1.18677623,84.723,84.681,1.23255953]
[1771628775800,1.18677623,84.723,84.691,1.23255953]
[1771628777628,29.50377229,84.735,84.675,41.33451431]
[1771628777629,1.18677623,84.731,84.701,1.23255953]
[1771628778108,1.18677623,84.738,84.701,1.23255953]
[1771628779807,1.18677623,84.736,84.701,1.23255953]
[1771628780019,1.18677623,84.719,84.684,1.23255953]
[1771628780912,1.18677623,84.729,84.691,1.23255953]
[1771628782819,1.18677623,84.727,84.692,1.23255953]
[1771628783034,4.29158742,84.73,84.692,1.23255953]
[1771628783035,0.1,84.76,84.692,1.23255953]
[1771628783323,11.79931544,84.751,84.721,1.23255953]
[1771628783618,1.28677623,84.74,84.721,1.23255953]
[1771628783800,0.1,84.74,84.721,1.23255953]
[1771628784816,0.1,84.74,84.723,1.23255953]
[1771628785014,0.1,84.76,84.731,1.23255953]
[1771628785814,0.1,84.76,84.741,1.23255953]
[1771628788220,0.1,84.76,84.743,1.23255953]
[1771628789003,0.1,84.78,84.749,1.23255953]
[1771628789004,1.28677623,84.78,84.749,1.23255953]
[1771628789320,1.28677623,84.78,84.745,1.23255953]
[1771628789321,1.18677623,84.778,84.745,1.23255953]
[1771628791011,11.79565212,84.777,84.746,11.79996696]
[1771628791324,1.18677623,84.776,84.747,1.23255953]
[1771628791543,0.1,84.78,84.761,1.23255953]
[1771628791827,0.1,84.78,84.751,1.23255953]
[1771628791828,1.18677623,84.778,84.751,1.23255953]
[1771628793508,0.1,84.78,84.735,1.23255953]
[1771628793509,1.18677623,84.769,84.735,1.23255953]
[1771628793825,41.28478242,84.777,84.741,1.23255953]
[1771628793826,1.18677623,84.776,84.741,1.23255953]
[1771628795425,1.18677623,84.776,84.743,1.23255953]
[1771628796222,11.7959304,84.775,84.743,1.23255953]
[1771628796407,1.18677623,84.774,84.743,1.23255953]
[1771628797624,1.29422902,84.78,84.745,1.10894165]
[1771628797835,11.79537385,84.779,84.745,1.10894165]
[1771628798029,1.19422902,84.778,84.745,1.10894165]
[1771628800040,1.19422902,84.776,84.746,11.79996696]
[1771628800736,1.19422902,84.776,84.747,1.10894165]
[1771628803322,1.19422902,84.774,84.747,1.10894165]
[1771628804130,1.19422902,84.769,84.731,1.10894165]
[1771628804335,1.19422902,84.769,84.732,1.10894165]
[1771628804723,4.29158742,84.76,84.714,1.10894165]
[1771628804916,1.19422902,84.759,84.715,1.10894165]
[1771628806722,1.19422902,84.757,84.717,1.10894165]
[1771628809539,4.29158742,84.76,84.717,1.10894165]
[1771628809540,1.19422902,84.755,84.717,1.10894165]
[1771628810616,1.19422902,84.739,84.705,11.80564661]
[1771628810820,1.19422902,84.739,84.699,1.10894165]
[1771628811341,1.19422902,84.717,84.683,1.10894165]
[1771628812418,11.80386694,84.718,84.662,1.10894165]
[1771628812419,1.19422902,84.709,84.662,1.10894165]
[1771628812619,1.19422902,84.699,84.662,1.10894165]
[1771628814327,41.3135343,84.718,84.656,11.81250364]
[1771628814328,1.19422902,84.689,84.656,11.81250364]
[1771628815247,1.19422902,84.689,84.653,1.10894165]
[1771628815545,1.19422902,84.679,84.642,11.81446359]
[1771628815846,1.19422902,84.679,84.643,1.10894165]
[1771628816746,1.19422902,84.679,84.618,5.36086188]
[1771628816747,11.80944283,84.678,84.644,11.81418647]
[1771628816919,1.19422902,84.685,84.645,1.10894165]
[1771628817322,1.19422902,84.685,84.651,1.10894165]
[1771628819625,1.19422902,84.683,84.653,1.10894165]
[1771628822427,1.19422902,84.683,84.644,29.53546618]
[1771628822428,1.19422902,84.683,84.655,1.10894165]
[1771628823432,11.80883511,84.683,84.655,1.10894165]
[1771628823728,1.19422902,84.698,84.661,1.10894165]
[1771628824734,11.80553915,84.706,84.68,4.2905124]
[1771628824937,11.80553915,84.706,84.681,1.10894165]
[1771628828252,12.8972432,84.71,84.681,1.10894165]
[1771628828940,1.0922615,84.709,84.681,1.10894165]
[1771628830037,1.0922615,84.709,84.682,1.10594886]
[1771628830654,1.0922615,84.716,84.684,1.10594886]
[1771628831136,11.80284519,84.726,84.691,1.10594886]
[1771628831342,12.89510669,84.726,84.691,1.10594886]
[1771628831537,1.0922615,84.725,84.691,1.10594886]
[1771628832550,1.0922615,84.723,84.693,1.10594886]
[1771628834657,1.0922615,84.723,84.668,5.36086188]
[1771628834658,1.0922615,84.735,84.701,1.10594886]
[1771628834842,11.80094171,84.739,84.701,1.10594886]
[1771628835042,1.0922615,84.74,84.701,1.10594886]
[1771628835235,1.0922615,84.74,84.711,1.10594886]
[1771628836145,1.0922615,84.738,84.711,1.10594886]
[1771628836658,1.0922615,84.738,84.7,4.2905124]
[1771628836659,1.0922615,84.736,84.704,11.80578817]
[1771628837673,1.0922615,84.729,84.695,11.80707243]
[1771628838258,1.0922615,84.729,84.686,11.80824476]
[1771628838640,11.80247379,84.728,84.688,11.80804836]
[1771628838851,1.0922615,84.727,84.688,11.80804836]
[1771628839257,1.0922615,84.727,84.688,12.91399722]
[1771628839755,1.0922615,84.727,84.688,1.10594886]
[1771628840166,1.0922615,84.727,84.688,12.91399722]
[1771628840966,1.0922615,84.719,84.679,11.80930336]
[1771628841262,1.0922615,84.709,84.68,1.10594886]
[1771628842654,4.2905124,84.72,84.68,1.10594886]
[1771628842655,1.0922615,84.707,84.68,1.10594886]
[1771628846267,1.0922615,84.705,84.68,1.10594886]
[1771628847146,1.0922615,84.705,84.678,11.80940178]
[1771628847668,1.0922615,84.699,84.669,11.81069813]
[1771628847844,1.0922615,84.699,84.669,12.91664699]
[1771628848057,1.0922615,84.699,84.67,1.10594886]
[1771628849369,1.0922615,84.699,84.672,1.10594886]
[1771628852168,1.0922615,84.699,84.674,1.10594886]
[1771628852653,11.80622096,84.702,84.674,1.10594886]
[1771628853379,1.0922615,84.706,84.676,1.10594886]
[1771628855776,12.89794003,84.705,84.678,1.10431627]
[1771628856592,11.80595728,84.703,84.678,1.10431627]
[1771628856778,11.80595728,84.703,84.615,11.82]
[1771628856779,1.0922615,84.699,84.652,1.10210788]
[1771628857075,1.0922615,84.689,84.652,1.10210788]
[1771628857861,1.06186522,84.679,84.652,1.10210788]
[1771628858876,1.06186522,84.677,84.653,11.81293043]
[1771628859373,1.06186522,84.677,84.654,1.06995905]
[1771628860269,1.06186522,84.677,84.653,11.81293043]
[1771628860870,1.06186522,84.677,84.628,5.36086188]
[1771628860871,1.06186522,84.669,84.64,1.06995905]
[1771628861880,1.06186522,84.669,84.634,1.06995905]
[1771628863155,1.06186522,84.667,84.635,11.81544278]
[1771628863563,1.06186522,84.649,84.622,1.06995905]
[1771628864279,1.06186522,84.649,84.612,1.06995905]
[1771628864979,1.06186522,84.639,84.611,11.81879424]
[1771628867280,3.69383402,84.671,84.6,4.4905124]
[1771628867281,1.06186522,84.66,84.6,1e-08]
[1771628867477,1.06186522,84.609,84.57,4.4905124]
[1771628867672,1.06186522,84.629,84.58,4.4905124]
[1771628868582,1.06186522,84.629,84.59,12.02160117]
[1771628868770,1.06186522,84.629,84.59,0.2]
[1771628868974,1.06186522,84.609,84.59,0.2]
[1771628869377,1.06186522,84.607,84.59,0.2]
[1771628872284,1.06186522,84.605,84.59,0.2]
[1771628872669,3.69383402,84.631,84.59,0.2]
[1771628872670,1.06186522,84.619,84.591,1.0682755]
[1771628874085,16.10665324,84.63,84.592,1.06995905]
[1771628874284,4.2905124,84.63,84.594,1.06995905]
[1771628875878,4.2905124,84.63,84.59,0.2]
[1771628876193,1.06186522,84.619,84.59,0.2]
[1771628876575,1.06186522,84.617,84.59,0.2]
[1771628877676,1.06186522,84.609,84.59,0.2]
[1771628879198,1.06186522,84.607,84.59,0.2]
[1771628884392,1.06186522,84.618,84.592,1.06995905]
[1771628884693,1.06186522,84.618,84.59,0.2]
[1771628885795,1.06186522,84.618,84.59,1.26995905]
[1771628886698,1.06186522,84.616,84.59,1.26995905]
[1771628888902,1.04989607,84.614,84.59,1.26995905]
[1771628893788,1.04989607,84.612,84.591,12.84894366]
[1771628894106,1.04989607,84.612,84.592,1.02735508]
[1771628896706,1.04989607,84.61,84.592,1.02735508]
[1771628897091,1.04989607,84.61,84.59,0.2]
[1771628897510,1.04989607,84.609,84.59,0.2]
[1771628898706,11.81921331,84.608,84.59,0.2]
[1771628898911,1.04989607,84.607,84.59,0.2]
[1771628899510,11.44443155,84.608,84.59,0.2]
[1771628901405,1.04989607,84.607,84.59,0.2]
[1771628901614,11.8194927,84.606,84.59,0.2]
[1771628902208,11.8194927,84.606,84.591,1.02735508]
[1771628902412,11.57540905,84.606,84.591,1.02735508]
[1771628904714,29.54698561,84.611,84.591,1.02735508]
[1771628905229,30.59688168,84.611,84.591,1.02735508]
[1771628905415,1.04989607,84.61,84.591,1.02735508]
[1771628908817,11.81907362,84.609,84.591,1.02735508]
[1771628910117,1.04989607,84.609,84.591,1.02735508]
[1771628910519,29.54698561,84.611,84.591,1.02735508]
[1771628910520,1.04989607,84.618,84.591,1.02735508]
[1771628912205,1.04989607,84.616,84.591,1.02735508]
[1771628915227,1.04989607,84.614,84.591,1.02735508]
[1771628917534,11.81851488,84.613,84.591,1.02735508]
[1771628920239,1.02587826,84.613,84.591,1.02735508]
[1771628922335,11.81865456,84.612,84.591,1.02735508]
[1771628922836,1.02587826,84.611,84.582,0.98262195]
[1771628924828,1.02587826,84.609,84.582,0.98262195]
[1771628926920,1.02587826,84.607,84.582,0.98262195]
[1771628929022,1.02587826,84.605,84.582,0.98262195]
[1771628929345,1.02587826,84.605,84.58,0.2]
[1771628930131,1.02587826,84.599,84.58,0.2]
[1771628930326,4.29755203,84.6,84.58,0.2]
[1771628930327,1.02587826,84.597,84.58,0.2]
[1771628932024,4.29755203,84.59,84.57,1e-08]
[1771628932230,1.02587826,84.579,84.56,0.2]
[1771628933551,1.02587826,84.577,84.56,0.2]
[1771628935260,1.02587826,84.577,84.55,0.2]
[1771628935551,1.02587826,84.567,84.55,0.2]
[1771628935725,1.02587826,84.567,84.54,0.2]
[1771628935726,1.02587826,84.567,84.54,1.18262195]
[1771628935926,1.02587826,84.559,84.54,1.18262195]
[1771628936430,1.02587826,84.559,84.54,0.2]
[1771628938845,1.02587826,84.557,84.54,0.2]
[1771628939645,1.02587826,84.557,84.535,0.98262195]
[1771628940850,1.02587826,84.555,84.535,0.98262195]
[1771628941938,11.82676159,84.554,84.535,0.98262195]
[1771628942650,1.02587826,84.549,84.522,0.98262195]
[1771628943236,1.02587826,84.549,84.517,0.98262195]
[1771628945427,41.3966031,84.548,84.517,0.98262195]
[1771628945736,1.02587826,84.547,84.517,0.98262195]
[1771628946346,11.82760088,84.548,84.519,0.98262195]
[1771628946650,3.69383402,84.571,84.518,11.83179914]
[1771628946651,11.82606227,84.559,84.521,0.98262195]
[1771628946830,1.02587826,84.558,84.521,0.98262195]